Cogmind - Beta 12 @@@ ROGUE MODE // 2023.11.01 @ 18:03:05 Player: monistgf Result: Destroyed by H-66 Slayer with Gauss Rifle Performance ------------- Evolutions (5) 2500 Regions Visited (13) 2600 Robots Destroyed (106) 530 Value Destroyed (4722) 4722 Prototype IDs (6) 120 Alien Tech Used (0) 0 Bonus (1965) 1965 TOTAL SCORE: 12437 Bonus ------- High Alert Combat Kills 534 Follower Combat Kills 154 Entered Garrisons 600 Used RIF Installer 500 Aligned with FarCom 300 Friendly Fire -123 Cogmind --------- Core Integrity 0/1000 Matter 280/300 Energy 79/100 System Corruption 0% Temperature Cool (11) Movement Walking (190) Ox1 Location -5/Garrison Parts ------- > --- POWER (1) -------- (None) > --- PROPULSION (3) --- Carbon-fiber Leg Carbon-fiber Leg > --- UTILITY (9) ------ High-capacity Storage Unit Advanced Visual Processing Unit Targeting Computer Targeting Computer > --- WEAPON (4) ------- (None) > --- INVENTORY (20) --- Light Nuclear Core High-capacity Storage Unit High-capacity Matter Pod (200) Advanced Terrain Scanner Authchip [R/Combat] Authchip [R/Combat] Authchip [R/Combat] Relay Coupler [Swarmer] (48) Relay Coupler [Grunt] (26) Relay Coupler [Duelist] (24) Relay Coupler [Sentry] (26) Relay Coupler [Specialist] (20) Relay Coupler [Hunter] (18) Improved Plasma Cutter Shock Maul Peak State ------------ > --- POWER ------------ Improved Deuterium Engine > --- PROPULSION ------- Flexi-carbon Leg Flexi-carbon Leg Flexi-carbon Leg > --- UTILITY ---------- Advanced Heat Sink Advanced Heat Sink Advanced Heat Sink High-capacity Storage Unit Improved Trap Scanner Advanced Visual Processing Unit Improved Targeting Computer Weapon Cycler Advanced System Shield > --- WEAPON ----------- Plasma Rifle Gauss Rifle Heavy Machine Gun Magnetic Acceleration Cannon > --- INVENTORY -------- Improved Treads High-capacity Storage Unit High-capacity Matter Pod Advanced Terrain Scanner Particle Charger Authchip [R/Combat] Authchip [R/Combat] Authchip [R/Combat] Authchip [R/Combat] Relay Coupler [Swarmer] Relay Coupler [Sentry] Relay Coupler [Specialist] Gatling Laser Gatling Laser Plasma Rifle Gauss Rifle Heavy Machine Gun Rocket Launcher Shock Maul [Rating: 81] Favorites ----------- Power Ion Engine Engine Ion Engine Power Core Fission Core Propulsion Wheel Treads Medium Treads Leg Flexi-carbon Leg Wheel Wheel Utility Advanced Heat Sink Device Advanced Heat Sink Storage High-capacity Storage Unit Processor Improved Targeting Computer Hackware Advanced System Shield Protection Reactive Plating Weapon Plasma Rifle Energy Gun Plasma Rifle Energy Cannon Plasma Cannon Ballistic Gun Shotgun Ballistic Cannon Assault Cannon Launcher Rocket Launcher Special Weapon Improved Plasma Cutter Impact Weapon Shock Maul Build | -11 -10 -10 -10 -9 -8 -7 -7 -7 -6 -5 -5 -5 -5 ------- Run | Jun Mat Min Exi Min Mat Fac Gar Fac Fac Fac Gar Fac Gar Slots Evolved 10 | . . . . . 4 2 . . 2 2 . . . Power . | . . . . . . . . . . . . . . Propulsion 1 | . . . . . 1 . . . . . . . . Utility 7 | . . . . . 2 2 . . 1 2 . . . Weapon 2 | . . . . . 1 . . . 1 . . . . Parts Attached 186 | . 4 6 1 11 18 3 15 24 25 14 39 1 25 Power 19 | . . . . 1 4 1 1 1 3 1 3 . 4 Engine 10 | . . . . 1 3 . 1 1 . . 2 . 2 Core 9 | . . . . . 1 1 . . 3 1 1 . 2 Reactor . | . . . . . . . . . . . . . . Propulsion 45 | . 2 1 . 5 4 . 2 11 2 3 5 1 9 Treads 6 | . . . . 1 1 . 1 . 1 1 1 . . Leg 15 | . . . . . . . 1 . . . 4 1 9 Wheel 24 | . 2 1 . 4 3 . . 11 1 2 . . . Hover . | . . . . . . . . . . . . . . Flight . | . . . . . . . . . . . . . . Utility 52 | . 1 3 1 2 6 2 3 9 6 8 10 . 1 Device 34 | . . 1 . 2 2 1 2 8 4 5 8 . 1 Storage 4 | . 1 . 1 . 1 . . . . 1 . . . Processor 8 | . . . . . 2 1 . . 2 1 2 . . Hackware 2 | . . . . . . . . 1 . 1 . . . Protection 4 | . . 2 . . 1 . 1 . . . . . . Artifact . | . . . . . . . . . . . . . . Weapon 70 | . 1 2 . 3 4 . 9 3 14 2 21 . 11 Energy Gun 15 | . . . . . . . 2 1 6 2 4 . . Energy Cannon 2 | . . . . . . . 2 . . . . . . Ballistic Gun 31 | . 1 2 . 1 4 . 3 2 5 . 7 . 6 Ballistic Cannon 4 | . . . . 2 . . . . . . 2 . . Launcher 5 | . . . . . . . 2 . . . 2 . 1 Special Weapon 1 | . . . . . . . . . . . . . 1 Impact Weapon 12 | . . . . . . . . . 3 . 6 . 3 Slashing Weapon . | . . . . . . . . . . . . . . Piercing Weapon . | . . . . . . . . . . . . . . Special Melee Weapon . | . . . . . . . . . . . . . . Unidentified Prototypes 6 | . . . . . 1 . . 1 3 1 . . . Parts Lost 70 | . . 1 . 9 6 . 9 6 2 . 16 . 21 Power 7 | . . . . 1 2 . . . . . 2 . 2 Propulsion 27 | . . . . 5 2 . 4 3 2 . 4 . 7 Utility 15 | . . 1 . 1 . . 2 1 . . 5 . 5 Weapon 21 | . . . . 2 2 . 3 2 . . 5 . 7 Highest Loss Streak 12 | . . 1 . 9 6 . 4 3 2 . 6 . 12 To Critical Strikes . | . . . . . . . . . . . . . . Average Slot Usage (%) 95 | . 86 99 100 88 92 100 87 97 99 99 96 100 93 Engine 5 | . 14 14 14 13 7 . 2 7 . . 2 5 1 Core 2 | . . . . . . 7 4 . 5 5 2 . 3 Treads 2 | . . . . . 1 7 7 . 2 5 2 . . Leg 3 | . 3 . . . . . 3 . . . 10 17 15 Wheel 13 | . 24 28 28 21 23 15 1 21 17 11 3 . . Device 15 | . . . . 2 5 7 10 22 20 27 21 23 20 Storage 7 | . 15 14 14 14 9 7 7 7 6 5 5 5 5 Processor 15 | . . . . . 15 23 23 15 19 17 19 23 22 Protection 2 | . . 12 14 5 3 7 3 . . . . . . Energy Gun 7 | . 14 . . . . . 5 6 19 10 9 17 14 Ballistic Gun 12 | . 14 28 28 19 20 23 11 12 6 5 7 5 3 Ballistic Cannon 1 | . . . . 8 6 . . . . . 1 . . Naked Turns . | . . . . . . . . . . . . . . Heaviest Build 78 | 13 35 41 61 61 64 63 65 66 70 73 78 71 76 Greatest Support 60 | 20 26 26 26 26 36 26 40 42 32 34 60 55 60 Greatest Overweight (x) 17 | . 1 1 2 17 2 2 6 6 3 5 7 1 13 Average Overweight (x) 1 | . . 1 1 2 1 2 2 1 2 2 1 1 1 Largest Inventory Capacity 20 | . 15 15 20 20 20 20 20 20 20 20 20 20 20 Average Capacity 19 | . 10 15 15 20 20 20 20 20 20 20 20 20 20 Most Carried 20 | . 8 15 16 17 20 16 20 20 20 20 20 20 20 Average Carried 18 | . 7 12 15 13 17 15 18 19 19 19 19 20 19 Final Capacity 20 | 8 15 15 20 20 20 20 20 20 20 20 20 20 20 Final Carried 20 | 6 7 15 16 13 16 16 19 20 20 20 20 20 15 Class Distribution -------------------- 33% | Scavenger-Skirmisher 19% | Mutant 16% | Scavenger-Gunner 11% | Gunner 7% | Assassin 7% | Scavenger-Mutant 3% | Skirmisher Dominant Class ---------------- Mutant | -10/Materials Mutant | -10/Mines Mutant | -10/Exiles Mutant | -9/Mines Scavenger-Skirmisher | -8/Materials Scavenger-Skirmisher | -7/Factory Scavenger-Skirmisher | -7/Garrison Scavenger-Skirmisher | -7/Factory Gunner | -6/Factory Assassin | -5/Factory Scavenger-Gunner | -5/Garrison Scavenger-Gunner | -5/Factory Scavenger-Gunner | -5/Garrison Resources | -11 -10 -10 -10 -9 -8 -7 -7 -7 -6 -5 -5 -5 -5 ----------- Run | Jun Mat Min Exi Min Mat Fac Gar Fac Fac Fac Gar Fac Gar Matter Collected 3770 | 200 . 255 . 388 481 . 344 621 294 37 882 24 244 Remotely . | . . . . . . . . . . . . . . Salvage Created 4200 | . . 245 . 211 476 . 344 858 268 37 1056 54 651 Parts 206 | . . 21 . 2 27 . 9 56 16 1 48 1 25 Haulers Intercepted 2 | . . . . . 1 . . 1 . . . . . Recyclers Shooed 2 | . . . . . 2 . . . . . . . . Parts Field Recycled . | . . . . . . . . . . . . . . Retrieved Matter . | . . . . . . . . . . . . . . Parts Self-Destructed . | . . . . . . . . . . . . . . Prevented . | . . . . . . . . . . . . . . Kills | -11 -10 -10 -10 -9 -8 -7 -7 -7 -6 -5 -5 -5 -5 ------- Run | Jun Mat Min Exi Min Mat Fac Gar Fac Fac Fac Gar Fac Gar Combat Hostiles Destroyed 113 | . . 9 . 20 11 . 8 16 8 . 31 1 9 Guns 81 | . . 9 . 5 7 . 3 16 7 . 25 1 8 Cannons 22 | . . . . 15 4 . 2 . . . 1 . . AOE 6 | . . . . . . . 1 . . . 5 . . Classes Destroyed 16 | . . 3 . 2 3 . . 3 . 1 4 . . Worker 4 | . . . . . . . . 4 . . . . . Builder 1 | . . . . . . . . 1 . . . . . Tunneler 2 | . . . . 1 . . . 1 . . . . . Hauler 2 | . . . . . 1 . . 1 . . . . . Recycler 2 | . . 1 . . . . . 1 . . . . . Watcher 1 | . . . . . . . . . . 1 . . . Swarmer 35 | . . 6 . . . . . 6 6 . 15 . 2 Grunt 33 | . . 3 . . 5 . 4 7 . . 9 1 4 Duelist 2 | . . . . . 1 . 1 . . . . . . Protector 1 | . . . . . . . . . . . 1 . . Sentry 10 | . . . . . 5 . 3 . 1 . 1 . . Demolisher 1 | . . . . . . . . . . . 1 . . Hunter 5 | . . . . . . . . . . . 3 . 2 Programmer 4 | . . . . . . . . 3 1 . . . . Behemoth 2 | . . . . . . . . . . . 1 . 1 Assembled 20 | . . . . 20 . . . . . . . . . Guerrilla 1 | . . . . . . . . . . . . . 1 Best Kill Streak 17 | . . 3 . 17 3 . 3 6 7 1 11 1 4 Combat Bots Only 17 | . . 3 . 17 3 . 3 6 7 . 11 1 4 Max Kills in Single Turn 3 | . . 1 . 2 1 . 1 2 1 1 2 1 3 Gunslinging 1 | . . . . . . . . . . . 1 . 1 Exploded 2 | . . . . . . . 1 . . . 2 . . Melee . | . . . . . . . . . . . . . . Uniques/NPCs Destroyed . | . . . . . . . . . . . . . . Combat | -11 -10 -10 -10 -9 -8 -7 -7 -7 -6 -5 -5 -5 -5 -------- Run | Jun Mat Min Exi Min Mat Fac Gar Fac Fac Fac Gar Fac Gar Damage Taken 8831 | . . 351 . 887 637 . 1171 894 283 40 1895 77 2596 Core 1588 | . . 27 . 155 65 . 179 137 25 . 180 . 820 Absorbed by Shields 9 | . . . . . . . . . . . . . 9 Redirected to Shielding 22 | . . 22 . . . . . . . . . . . Core Remaining (%) 73 | 100 . . . 27 88 . . 54 97 . . . . Volleys Fired 286 | . . 20 . 36 31 . 31 60 15 . 56 1 36 Largest 4 | . . 2 . 2 3 . 3 3 4 . 4 4 4 Hottest 263 | . . 48 . 69 92 . 183 168 263 . 263 263 263 Shots Fired 733 | . . 40 . 71 82 . 72 143 50 . 187 4 84 Gun 612 | . . 40 . 40 64 . 53 137 50 . 156 4 68 Cannon 98 | . . . . 31 18 . 15 6 . . 28 . . Launcher 7 | . . . . . . . 4 . . . 3 . . Special 16 | . . . . . . . . . . . . . 16 Kinetic 473 | . . 40 . 71 82 . 42 100 15 . 96 1 26 Thermal 253 | . . . . . . . 26 43 35 . 88 3 58 Explosive 7 | . . . . . . . 4 . . . 3 . . Electromagnetic . | . . . . . . . . . . . . . . Robot Hit Streak 45 | . . 7 . 13 9 . 15 19 12 . 18 5 45 Robot Miss Streak 7 | . . 7 . 4 6 . 2 3 6 . 3 1 2 Penetration Max 1 | . . . . . . . . 1 . . . . 1 Secondary Targets 15 | . . . . . 2 . . 1 1 . 6 . 5 Max Gunslinging Chain 2 | . . . . . 1 . . 1 1 . 2 . 1 Shots Hit Robots 538 | . . 26 . 38 57 . 54 109 24 1 147 4 78 Core Hits 274 | . . 15 . 28 30 . 27 50 10 1 73 3 37 Critical Kills 3 | . . . . 1 . . . . . 1 1 . . Critical Parts Destroyed 3 | . . . . . . . . 1 1 . 1 . . Critical Strikes 16 | . . . . 1 . . . 2 3 1 9 . . Burn 8 | . . . . . . . . . 2 . 6 . . Destroy 6 | . . . . 1 . . . 2 1 . 2 . . Blast 1 | . . . . . . . . . . . 1 . . Smash 1 | . . . . . . . . . . 1 . . . Melee Attacks 45 | . . . . . . . . . 3 1 29 . 12 Impact 45 | . . . . . . . . . 3 1 29 . 12 Slashing . | . . . . . . . . . . . . . . Piercing . | . . . . . . . . . . . . . . Sneak Attacks . | . . . . . . . . . . . . . . Combat Hostiles . | . . . . . . . . . . . . . . Follow-up Attacks . | . . . . . . . . . . . . . . Damage Inflicted 11881 | . . 429 . 960 1134 . 1248 2190 577 66 3715 104 1458 Guns 9198 | . . 429 . 416 871 . 761 2114 577 . 2719 104 1207 Cannons 1727 | . . . . 513 263 . 308 76 . . 567 . . Explosions 608 | . . . . . . . 179 . . . 429 . . Melee 66 | . . . . . . . . . . 66 . . . Ramming 31 | . . . . 31 . . . . . . . . . Kinetic 6545 | . . 429 . 929 1134 . 518 1497 112 . 1497 21 408 Thermal 4631 | . . . . . . . 551 693 465 . 1789 83 1050 Explosive 608 | . . . . . . . 179 . . . 429 . . Electromagnetic . | . . . . . . . . . . . . . . Impact 66 | . . . . . . . . . . 66 . . . Slashing . | . . . . . . . . . . . . . . Piercing . | . . . . . . . . . . . . . . Highest Corruption 7 | . . . . 7 . . . . . . . . . Average Corruption 6 | . . . . 6 . . . . . . . . . Corruption Purged . | . . . . . . . . . . . . . . Corruption Blocked . | . . . . . . . . . . . . . . Effects 14 | . . . . 14 . . . . . . . . . Message Errors 3 | . . . . 3 . . . . . . . . . Matter Fused 2 | . . . . 2 . . . . . . . . . Heat Flow Errors 1 | . . . . 1 . . . . . . . . . Energy Discharges 4 | . . . . 4 . . . . . . . . . Data Loss (minor) 3 | . . . . 3 . . . . . . . . . Misfires 1 | . . . . 1 . . . . . . . . . Overload Shots . | . . . . . . . . . . . . . . Overflow Damage 50 | . . . . 8 . . 17 1 . . 24 . . Projectiles 40 | . . . . 8 . . 17 1 . . 14 . . Explosions 10 | . . . . . . . . . . . 10 . . Melee . | . . . . . . . . . . . . . . Knockbacks 15 | . . . . 11 . . . . . . 4 . . Impact . | . . . . . . . . . . . . . . Kinetic 10 | . . . . 6 . . . . . . 4 . . Secondary 5 | . . . . 5 . . . . . . . . . Self-Inflicted Damage 15 | . . . . 15 . . . . . . . . . Shots . | . . . . . . . . . . . . . . Rammed 1 | . . . . 1 . . . . . . . . . Targets Rammed 1 | . . . . 1 . . . . . . . . . Kicked . | . . . . . . . . . . . . . . Crushed . | . . . . . . . . . . . . . . Highest Temperature 360 | . . 108 . 322 132 . 268 90 271 . 360 . 12 Average Temperature 81 | . . 48 . 125 34 . 118 16 90 . 93 . 11 Received Heat Transfer 2019 | . . 120 . 225 288 . 516 171 6 . 207 36 450 Effects 2 | . . . . 1 . . . . . . 1 . . Energy Bleed 1 | . . . . 1 . . . . . . . . . Damage (minor) 1 | . . . . . . . . . . . 1 . . Siege Activations . | . . . . . . . . . . . . . . Robots Corrupted . | . . . . . . . . . . . . . . Combat Hostiles . | . . . . . . . . . . . . . . Parts Fried . | . . . . . . . . . . . . . . Impact Corruptions . | . . . . . . . . . . . . . . Robots Melted 4 | . . . . . . . 2 . 1 . . . 1 Combat Hostiles 4 | . . . . . . . 2 . 1 . . . 1 Parts Melted 22 | . . . . . . . 2 3 4 . 8 2 3 Heat Transferred 10305 | . . . . . . . 1150 1480 1200 . 4199 175 2101 Parts Sabotaged . | . . . . . . . . . . . . . . Parts Stolen . | . . . . . . . . . . . . . . Parts Stripped . | . . . . . . . . . . . . . . Power Chain Reactions . | . . . . . . . . . . . . . . Missiles Intercepted . | . . . . . . . . . . . . . . Alert | -11 -10 -10 -10 -9 -8 -7 -7 -7 -6 -5 -5 -5 -5 ------- Run | Jun Mat Min Exi Min Mat Fac Gar Fac Fac Fac Gar Fac Gar Peak Influence 1098 | . 15 125 . 5 272 55 237 304 188 71 1098 654 740 Initial 576 | . . 5 . . . 55 38 123 118 40 49 576 457 Average 261 | . 1 58 . 1 101 55 175 152 74 46 654 600 646 Maximum Alert Level 3 | . . . . . 1 . 1 1 . . 3 2 3 Low Security (%) 59 | . 100 100 . 100 93 100 51 62 100 100 10 . . Level 1 15 | . . . . . 6 . 48 37 . . 9 . . Level 2 14 | . . . . . . . . . . . 34 100 88 Level 3 10 | . . . . . . . . . . . 45 . 11 Level 4 . | . . . . . . . . . . . . . . Level 5 . | . . . . . . . . . . . . . . High Security . | . . . . . . . . . . . . . . Max Security . | . . . . . . . . . . . . . . Squads Dispatched 11 | . . 1 . . 1 . . 5 2 1 . 1 . Investigation 1 | . . 1 . . . . . . . . . . . Extermination 5 | . . . . . . . . 3 1 1 . . . Reinforcement 5 | . . . . . 1 . . 2 1 . . 1 . Assault . | . . . . . . . . . . . . . . Garrison . | . . . . . . . . . . . . . . Intercept . | . . . . . . . . . . . . . . Searches Triggered . | . . . . . . . . . . . . . . Construction Impeded 2 | . . . . . 1 . . 1 . . . . . Haulers Reinforced . | . . . . . . . . . . . . . . Active Scanning Responses . | . . . . . . . . . . . . . . Cargo Convoy Interrupts . | . . . . . . . . . . . . . . Stealth | -11 -10 -10 -10 -9 -8 -7 -7 -7 -6 -5 -5 -5 -5 --------- Run | Jun Mat Min Exi Min Mat Fac Gar Fac Fac Fac Gar Fac Gar Distress Signals 6 | . . . . 2 4 . . . . . . . . Communications Jammed . | . . . . . . . . . . . . . . Distress Signals . | . . . . . . . . . . . . . . Times Spotted 148 | . 1 11 . 22 18 . 8 21 12 3 34 3 15 Peak Tracking Total 9 | . 1 3 . 7 9 . 3 5 3 2 9 2 8 Tactical Retreats 4 | . . . . . 1 . . . 1 . 1 . 1 Traps | -11 -10 -10 -10 -9 -8 -7 -7 -7 -6 -5 -5 -5 -5 ------- Run | Jun Mat Min Exi Min Mat Fac Gar Fac Fac Fac Gar Fac Gar Traps Triggered 10 | . . . . . . . . 1 . 2 5 . 2 Indirectly . | . . . . . . . . . . . . . . Trap Hack Attempts . | . . . . . . . . . . . . . . Triggered . | . . . . . . . . . . . . . . Disarmed . | . . . . . . . . . . . . . . Reprogrammed . | . . . . . . . . . . . . . . Reused . | . . . . . . . . . . . . . . Traps Extracted . | . . . . . . . . . . . . . . Installed . | . . . . . . . . . . . . . . Triggered . | . . . . . . . . . . . . . . Machines | -11 -10 -10 -10 -9 -8 -7 -7 -7 -6 -5 -5 -5 -5 ---------- Run | Jun Mat Min Exi Min Mat Fac Gar Fac Fac Fac Gar Fac Gar Machines Disabled 5 | . . . . . . . 1 . . . 3 . 1 Max in Single Turn 1 | . . . . . . . 1 . . . 1 . 1 Garrison Relay 4 | . . . . . . . . . . . 3 . 1 Machines Repaired . | . . . . . . . . . . . . . . Machines Sabotaged . | . . . . . . . . . . . . . . Overloaded Fab Kills . | . . . . . . . . . . . . . . Hacking | -11 -10 -10 -10 -9 -8 -7 -7 -7 -6 -5 -5 -5 -5 --------- Run | Jun Mat Min Exi Min Mat Fac Gar Fac Fac Fac Gar Fac Gar Machines Accessed 17 | . . 2 . . 2 1 1 2 2 3 3 1 . Terminals 11 | . . . . . 2 . 1 1 2 2 3 . . Fabricators 1 | . . . . . . . . 1 . . . . . Repair Stations . | . . . . . . . . . . . . . . Recycling Units . | . . . . . . . . . . . . . . Scanalyzers . | . . . . . . . . . . . . . . Garrison Access 3 | . . . . . . 1 . . . 1 . 1 . Total Hacks 36 | . . 2 . . 7 1 2 7 5 5 6 1 . Successful 13 | . . 2 . . 1 1 . 3 2 1 2 1 . Failed 23 | . . . . . 6 . 2 4 3 4 4 . . Catastrophic 5 | . . . . . 1 . 1 . . 2 1 . . Database Lockouts . | . . . . . . . . . . . . . . Manual 13 | . . . . . 3 . . 4 4 2 . . . Terminals 25 | . . . . . 7 . 2 3 5 2 6 . . Fabricators 4 | . . . . . . . . 4 . . . . . Repair Stations . | . . . . . . . . . . . . . . Recycling Units . | . . . . . . . . . . . . . . Scanalyzers . | . . . . . . . . . . . . . . Garrison Access 5 | . . . . . . 1 . . . 3 . 1 . Terminal Hacks 7 | . . 2 . . . . . 1 2 . 2 . . Open Door 3 | . . 2 . . . . . . . . 1 . . Branch Access Points 2 | . . . . . . . . 1 1 . . . . Alert Level 1 | . . . . . . . . . 1 . . . . Security Stations 1 | . . . . . . . . . . . 1 . . Fabricator Hacks 2 | . . . . . . . . 2 . . . . . Network Status 1 | . . . . . . . . 1 . . . . . Build 1 | . . . . . . . . 1 . . . . . Repair Station Hacks . | . . . . . . . . . . . . . . Recycling Unit Hacks . | . . . . . . . . . . . . . . Scanalyzer . | . . . . . . . . . . . . . . Garrison Access Hacks 3 | . . . . . . 1 . . . 1 . 1 . Unlock Access 3 | . . . . . . 1 . . . 1 . 1 . Unauthorized Hacks 1 | . . . . . 1 . . . . . . . . Terminals 1 | . . . . . 1 . . . . . . . . Botnet 1 | . . . . . 1 . . . . . . . . Fabricators . | . . . . . . . . . . . . . . Repair Stations . | . . . . . . . . . . . . . . Recycling Units . | . . . . . . . . . . . . . . Scanalyzers . | . . . . . . . . . . . . . . Garrison Access . | . . . . . . . . . . . . . . Data Cores Recovered . | . . . . . . . . . . . . . . Used . | . . . . . . . . . . . . . . Hacking Detections 12 | . . . . . 2 1 1 2 1 2 3 . . Full Trace Events 1 | . . . . . . . 1 . . . . . . Feedback Events . | . . . . . . . . . . . . . . Feedback Blocked . | . . . . . . . . . . . . . . Robot Schematics Acquired . | . . . . . . . . . . . . . . Robots Built 3 | . . . . . . . . 3 . . . . . Authchips 1 | . . . . . . . . 1 . . . . . Time 67 | . . . . . . . . 67 . . . . . Total Robot Build Rating 12 | . . . . . . . . 12 . . . . . Part Schematics Acquired . | . . . . . . . . . . . . . . Parts Built . | . . . . . . . . . . . . . . Authchips . | . . . . . . . . . . . . . . Time . | . . . . . . . . . . . . . . Total Part Build Rating . | . . . . . . . . . . . . . . Parts Repaired . | . . . . . . . . . . . . . . Time . | . . . . . . . . . . . . . . Parts Recycled . | . . . . . . . . . . . . . . Recycled Matter . | . . . . . . . . . . . . . . Retrieved Matter . | . . . . . . . . . . . . . . Retrieved Components . | . . . . . . . . . . . . . . Parts Scanalyzed . | . . . . . . . . . . . . . . Part Schematics Acquired . | . . . . . . . . . . . . . . Parts Damaged . | . . . . . . . . . . . . . . Bothacking | -11 -10 -10 -10 -9 -8 -7 -7 -7 -6 -5 -5 -5 -5 ------------ Run | Jun Mat Min Exi Min Mat Fac Gar Fac Fac Fac Gar Fac Gar Used RIF Installer 1 | . . . . . . . . . . . 1 . . Robots Hacked . | . . . . . . . . . . . . . . Non-combat . | . . . . . . . . . . . . . . Combat . | . . . . . . . . . . . . . . Robot Hacks Applied . | . . . . . . . . . . . . . . Relay Couplers Released 17 | . . . . . . . . . . . 12 . 5 Machine Destruction 17 | . . . . . . . . . . . 12 . 5 Fabnet Peak Effective % . | . . . . . . . . . . . . . . Robots Rewired 2 | . . . . . . . . . . . 2 . . Allies Hacked . | . . . . . . . . . . . . . . Hacks Repelled . | . . . . . . . . . . . . . . Allies | -11 -10 -10 -10 -9 -8 -7 -7 -7 -6 -5 -5 -5 -5 -------- Run | Jun Mat Min Exi Min Mat Fac Gar Fac Fac Fac Gar Fac Gar Total Allies 5 | . . . . . . . . 3 . . 2 . . Largest Group 3 | . . . . . . . . 3 . . 2 2 2 Highest-Rated Group 97 | . . . . . . . . 90 . . 97 97 97 Highest-Rated Ally 51 | . . . . . . . . 30 . . 51 51 51 Total Orders . | . . . . . . . . . . . . . . Ally Attacks 29 | . . . . . . . . 20 . . . 2 7 Total Damage 891 | . . . . . . . . 650 . . . 37 204 Kills 8 | . . . . . . . . 5 . . . 1 2 Allies Corrupted . | . . . . . . . . . . . . . . Allies Melted . | . . . . . . . . . . . . . . Intel | -11 -10 -10 -10 -9 -8 -7 -7 -7 -6 -5 -5 -5 -5 ------- Run | Jun Mat Min Exi Min Mat Fac Gar Fac Fac Fac Gar Fac Gar Robot Analysis Total . | . . . . . . . . . . . . . . Derelict Logs Recovered 4 | . . 2 . 2 . . . . . . . . . Drone Launches . | . . . . . . . . . . . . . . Drone Recoveries . | . . . . . . . . . . . . . . Exploration | -11 -10 -10 -10 -9 -8 -7 -7 -7 -6 -5 -5 -5 -5 ------------- Run | Jun Mat Min Exi Min Mat Fac Gar Fac Fac Fac Gar Fac Gar Turns Passed 9454 | . 80 796 210 761 503 96 1197 1598 1189 327 1879 50 768 Spaces Moved 4951 | 1 67 593 194 444 255 75 333 1034 641 219 849 24 222 Core 6 | . . . . 4 . . . . . . . . 2 Treads 192 | . . . . . . . 185 . . . 7 . . Legs 863 | 1 10 . . . . . 90 14 . . 504 24 220 Wheels 3890 | . 57 593 194 440 255 75 58 1020 641 219 338 . . Hover . | . . . . . . . . . . . . . . Flight . | . . . . . . . . . . . . . . Fastest Speed 90 | 120 90 105 105 105 101 120 120 101 113 115 120 190 190 Average Speed 141 | 120 100 105 107 134 108 120 301 114 119 127 167 190 196 Slowest Speed 900 | 120 120 105 120 900 120 120 540 540 130 165 400 190 700 Overloaded Moves . | . . . . . . . . . . . . . . Propulsion Burnouts . | . . . . . . . . . . . . . . Robots Hopped . | . . . . . . . . . . . . . . Cave-ins Triggered . | . . . . . . . . . . . . . . Exploration Rate (%) 32 | 2 12 99 56 90 25 3 40 20 11 5 75 2 21 Regions Visited 13 Branch Regions 3 Pre-discovered Areas 3 | . . 2 . 1 . . . . . . . . . Known Exits Taken 3 | . . . . . . 1 . . . 1 . 1 . Unknown Exits Taken 8 | 1 1 1 1 1 1 . . 1 1 . . . . Scrap Searched 1 | . . 1 . . . . . . . . . . . Spaces Dug 26 | . . . . . . . . . 3 . 14 . 9 Terrain Destroyed 63 | . . . . 6 5 . 18 . 4 . 19 . 11 Melee 26 | . . . . . . . . . 3 . 14 . 9 Projectile 15 | . . . . 6 5 . . . 1 . 2 . 1 AOE 21 | . . . . . . . 18 . . . 3 . . Terrain Rammed . | . . . . . . . . . . . . . . Walls Destroyed . | . . . . . . . . . . . . . . Machines Disabled . | . . . . . . . . . . . . . . Actions | -11 -10 -10 -10 -9 -8 -7 -7 -7 -6 -5 -5 -5 -5 --------- Run | Jun Mat Min Exi Min Mat Fac Gar Fac Fac Fac Gar Fac Gar Total 6781 | . 82 728 196 540 413 81 463 1362 1043 261 1137 26 449 Wait 1041 | . . 95 . 45 95 . 69 210 315 22 76 . 114 Move 4939 | . 66 592 193 444 254 74 332 1033 640 218 848 23 222 Hop . | . . . . . . . . . . . . . . Pick Up 87 | . 5 11 1 3 9 2 10 8 16 2 17 . 3 Fast Attach 59 | . 1 2 . 4 5 1 4 10 7 8 11 . 6 Attach 47 | . . . . 7 8 2 4 3 3 3 11 . 6 Detach 19 | . 1 . . 1 3 1 1 2 2 2 5 . 1 Swap 80 | . 3 4 1 . 5 . 7 11 15 3 17 1 13 Drop 91 | . 6 4 1 . 3 1 5 17 27 2 14 1 10 Fire 286 | . . 20 . 36 31 . 31 60 15 . 56 1 36 Melee 45 | . . . . . . . . . 3 1 29 . 12 Ram . | . . . . . . . . . . . . . . Kick . | . . . . . . . . . . . . . . Crush . | . . . . . . . . . . . . . . Escape Stasis 49 | . . . . . . . . 8 . . 31 . 10 Rewire 38 | . . . . . . . . . . . 22 . 16 Trap . | . . . . . . . . . . . . . . Miscellaneous . | . . . . . . . . . . . . . . Route ------- -11/Junkyard -10/Materials -10/Mines (discovered 3 exits: [*Mat x2] / [*Exi]) -10/Exiles -9/Mines -8/Materials -7/Factory (discovered 2 exits: Sto / Gar) -7/Garrison -7/Factory (discovered 4 exits: *Fac / Sto / *Low x2) -6/Factory (discovered 3 exits: *Fac / *Low x2) -5/Factory -5/Garrison (discovered 3 exits: *Fac x3) -5/Factory -5/Garrison History --------- Turn | Location | Event 1 | -11/Junkyard | Discovered new exit (range 0) 1 | -11/Junkyard | Entered Materials 1 | -10/Materials | Discovered new exit (range 17) 81 | -10/Materials | Entered Mines 259 | -10/Mines | Found the Drone Emporium 309 | -10/Mines | Build established: Mutant 394 | -10/Mines | Received a Rocket Launcher from a helpful Derelict 402 | -10/Mines | Discovered new exit (range 9) 411 | -10/Mines | Met a Derelict shopkeep closing up shop 424 | -10/Mines | Learned location of Mines (-9) 802 | -10/Mines | Discovered new exit (range 8) 872 | -10/Mines | Deemed a non-threat by the Exiles lab entrance 872 | -10/Mines | Discovered new exit (range 5) 877 | -10/Mines | Entered Exiles 902 | -10/Exiles | Met 8R-AWN 923 | -10/Exiles | Met EX-HEX 955 | -10/Exiles | Met EX-BIN 967 | -10/Exiles | Aligned with FarCom system 968 | -10/Exiles | Given EX-Vault access code 995 | -10/Exiles | Met EX-DEC 1077 | -10/Exiles | Discovered new exit (range 10) 1087 | -10/Exiles | Entered Mines 1216 | -9/Mines | YI-UF0 nonchalantly dropped a Grenade Launcher on the ground 1277 | -9/Mines | Learned location of Storage (-7) 1324 | -9/Mines | Learned Materials stockpile data 1350 | -9/Mines | Assembled infested the area 1428 | -9/Mines | Core integrity fell below 50% 1466 | -9/Mines | Destroyed 17 combat bots 1509 | -9/Mines | Lost 9 parts (1p5n1u2w) 1841 | -9/Mines | Discovered new exit (range 7) 1848 | -9/Mines | Entered Materials 1848 | -8/Materials | Evolved 4 slots: Propulsion x1, Utility x2, Weapon x1 1996 | -8/Materials | Build established: Scavenger-Skirmisher 2285 | -8/Materials | Lost 6 parts (2p2n2w) 2315 | -8/Materials | Discovered new exit (range 15) 2351 | -8/Materials | Entered Factory 2351 | -7/Factory | Evolved 2 slots: Utility x2 2352 | -7/Factory | Identified exit to Storage 2442 | -7/Factory | Identified exit to Garrison 2447 | -7/Factory | Entered Garrison 2522 | -7/Garrison | Triggered checkpoint 2579 | -7/Garrison | Lost 3 parts (2n1u) 3171 | -7/Garrison | Lost 4 parts (1n1u2w) 3471 | -7/Garrison | Discovered new exit (range 13) 3644 | -7/Garrison | Entered Factory 3873 | -7/Factory | Discovered new exit (range 5) 3901 | -7/Factory | Discovered new exit (range 11) 4348 | -7/Factory | Fabricated L-41 Fighter (x3) 4414 | -7/Factory | Lost 3 parts (2n1w) 4962 | -7/Factory | Identified exit to Lower Caves 5242 | -7/Factory | Entered another Factory area 5242 | -6/Factory | Evolved 2 slots: Utility x1, Weapon x1 5366 | -6/Factory | Discovered new exit (range 8) 5366 | -6/Factory | Discovered new exit (range 6) 5689 | -6/Factory | Discovered new exit (range 5) 5893 | -6/Factory | Build established: Gunner 6007 | -6/Factory | Destroyed 7 combat bots 6029 | -6/Factory | Identified exit to Lower Caves 6431 | -6/Factory | Entered another Factory area 6431 | -5/Factory | Evolved 2 slots: Utility x2 6732 | -5/Factory | Build established: Assassin 6750 | -5/Factory | Identified exit to Garrison 6758 | -5/Factory | Entered Garrison 6786 | -5/Garrison | Installed Relay Interface Framework 6802 | -5/Garrison | Triggered checkpoint 6832 | -5/Garrison | Garrison Relay disabled 6986 | -5/Garrison | Spotted B-75 Beast 7142 | -5/Garrison | Garrison Relay disabled 7274 | -5/Garrison | Triggered checkpoint 7279 | -5/Garrison | Destroyed B-75 Beast 7406 | -5/Garrison | Triggered checkpoint 7468 | -5/Garrison | Lost 6 parts (1p3n1u1w) 7469 | -5/Garrison | Destroyed 11 combat bots 7673 | -5/Garrison | Discovered new exit (range 12) 7782 | -5/Garrison | Triggered checkpoint 7826 | -5/Garrison | Garrison Relay disabled 8074 | -5/Garrison | Build established: Scavenger-Gunner 8156 | -5/Garrison | Triggered checkpoint 8176 | -5/Garrison | Discovered new exit (range 14) 8199 | -5/Garrison | Learned Factory security intel 8394 | -5/Garrison | Discovered new exit (range 10) 8554 | -5/Garrison | Triggered checkpoint 8637 | -5/Garrison | Entered Factory 8637 | -5/Factory | Accompanied by 2 allies 8666 | -5/Factory | Identified exit to Garrison 8687 | -5/Factory | Entered Garrison 8687 | -5/Garrison | Accompanied by 2 allies 8741 | -5/Garrison | Triggered checkpoint 8784 | -5/Garrison | Garrison Relay disabled 9304 | -5/Garrison | Spotted B-75 Beast 9333 | -5/Garrison | Destroyed B-75 Beast 9334 | -5/Garrison | Triggered checkpoint 9397 | -5/Garrison | Core integrity fell below 50% 9404 | -5/Garrison | Lost 12 parts (2p3n3u4w) 9449 | -5/Garrison | Core integrity fell below 20% 9455 | -5/Garrison | Destroyed by H-66 Slayer with Gauss Rifle Last Messages --------------- 09428_ Carbon-fiber Leg destroyed. 09428_ Penetrated by Slug. 09431_ Acquired Lgt. Nuclear Core. 09432_ Penetrated by Slug. 09433_ Acquired 30 matter. 09434_ Penetrated by Slug. 09434_ Carbon-fiber Leg destroyed. 09436_ Penetrated by Slug. 09438_ Imp. Targeting Computer destroyed. 09438_ Slug penetrates Reinforced Barrier. 09443_ Adv. Heat Sink destroyed. 09443_ Penetrated by Slug. 09444_ Slug penetrates Reinforced Barrier. 09446_ Penetrated by Slug. 09448_ Slug penetrates Reinforced Barrier. 09449_ Penetrated by Slug. 09450_ Acquired Carbon-fiber Leg. 09451_ Slug penetrates Reinforced Barrier. 09454_ Acquired Carbon-fiber Leg. 09455_ Penetrated by Slug. Map ----- +----------------------------------------------------+ | ????????????????????????????????????????????????? | | ????????????????????????????????????????????????? | | ????????????????????????????????????????????????? | | ????????????????????????????????????????????????? | | ????????????????????????????????????????????????? | | ????????????????????????????????????????????????? | | ????????????????????????????????????????????????? | | ????????????????????????????????????????????????? | | ?????????????????????#####??????????????????????? | | ?????????????????????# #??????????????????????? | | ?????????????######### #??????????????????????? | | ?????????????# #??????????????????????? | | ?????????????# #??????????????????????? | | ?????????????# ##########??????????????????????? | | ?????????????# #???????????????????????????????? | | ?????????????# #???????????????????????????????? | | ?????????????# #???????????????????????????????? | | ?????????????# #???????????????????????????????? | | ?????????????# #???????????????????????????????? | | ?????????????# #???????????????????????????????? | | ?????????????# ########????????????????????????? | | ?????????????#[[##"!"""#????????????????????????? | | ?????????????#%!###!!!##????????????????????????? | | ??############!]###Y% #######???????????????????? | | ??# =%![^[%!%Y*=[= ######??????????????? | | ??# [[[ !%= =%Y*% @ ; #??????????????? | | ??# ###"##### ###h%%#####+######??????????????? | | ???????# #???# #?#! *#???# #???????????????????? | | ?????### #???# #?##"##???# #???????????????????? | | ?????# "#### #??###????# #???????????????????? | | ?????### " #?????????# #???????????????????? | | ??????## ##### #????????## #####???????????????? | | ## ??# #???# #????????#! ]]]]##??????????????? | | ##+#####!%#????????#! ]]]]"#??????????????? | | % [#???????### ######??????????????? | | #???????# #??????????????????? | | ## ########""#??????## ##?????????????????? | | ?#" ????????# # #?????#" "#?????????????????? | | ????###### ###?????## ###?????????????????? | | ??????# "#???????###"#???????????????????? | | ???????######"##?????????###???????????????????? | | ?????????????# #????????????????????????????????? | | ?????????????###????????????????????????????????? | | ????????????????????????????????????????????????? | | ????????????????????????????????????????????????? | | ????????????????????????????????????????????????? | | ????????????????????????????????????????????????? | | ???????????????????????????""""?????????????????? | | ??????????????????????????????"?????????????????? | | ???????????????????????????""""?????????????????? | +----------------------------------------------------+ Best States ------------- Heat Dissipation 97 Coolant Potential 65 Energy Generation 19 Energy Capacity 315 Matter Stores 300 Matter Capacity 300 Sight Range 20 Robot Scan Range 15 Terrain Scan Range 20 Terrain Scan Density 85 Additional Mass Support 12 Armor Coverage 225 Resistance: KI 20 Weapon Shielding 33 Weapon Cycling 15 Evasion (%) 42 Targeting Accuracy 16 Recoil Reduction 2 Particle Charging 15 Defensive Hacking 14 Authchip Count 6 Item Schematics ----------------- None Robot Schematics ------------------ None Fabricated ------------ L-41 Fighter | x3 | -7/Factory | Preloaded, Authchip Alien Tech Used ----------------- None Achievements -------------- Exterminator Challenges ------------ None Game ------ Seed AdvancedMatterBoregun Manual? 0 Play Time 01:12:36 Cumulative 151.2 hours Start 2023.11.01 @ 16:53:33 End 2023.11.01 @ 18:03:05 Sessions 1 Manual Loads 0 Difficulty Rogue Special Mode None Game No. 87 Rogue 87 Adventurer 0 Explorer 0 Win Type - Total 0 Types 0/0/0/0/0/0/0/0/0 Lore% 32 Gallery% 62 Achievement% 48 Wizard Run 0 Options --------- ASCII 0 Keyboard 1 Movement Numpad Keybinds 0 Fullscreen 1 Font 24/Smallcaps Map View 76x50 Tactical HUD 1 Map Filters NONE Filters NONE Steam 1 RUN: 7a08dec3-851c-434a-b858-cd82ce98cfc8